fUSD/lending_fUSD_20250812
["ID","MTS","AMOUNT","RATE_DAILY","PERIOD"]
[378740111,1754998238450,-10877.45617318,0.00019,2]
[378740285,1754998240337,-782.35003041,0.00019,2]
[378740287,1754998240348,-817.28181432,0.00019,2]
[378740293,1754998240391,-406.78185936,0.00019,2]
[378740295,1754998240402,-410.84697194,0.00019,2]
[378740297,1754998240414,-4347.01342177,0.00019,2]
[378740299,1754998240425,-3551.4185243,0.00019,2]
[378740315,1754998240566,-17049.8157207,0.00019,2]
[378740321,1754998240614,-898.29933228,0.00019,2]
[378740568,1754998243454,-3669.93271301,0.00019,2]
[378740569,1754998243466,-3060.13487,0.00019,2]
[378740862,1754998246261,-34799.999996,0.00019,2]
[378740874,1754998246368,-8300.0,0.00019,2]
[378740876,1754998246380,-50732.17260807,0.00019,2]
[378740882,1754998246423,-60395.81901584,0.00019,2]
[378740888,1754998246477,-460.54680861,0.00019,2]
[378740895,1754998246535,-195033.02396889,0.00019,2]
[378741965,1754998310795,1499.0,0.00037078,30]
[378741966,1754998331050,1480.0,0.00037078,30]
[378742056,1754998745879,-300.0,0.00018999,2]
[378742057,1754998745902,-1200.0,0.00018999,2]
[378742058,1754998745924,-1200.0,0.00018999,2]
[378742059,1754998745947,-300.0,0.00018999,2]
[378742060,1754998745971,-184.43155739,0.00018999,2]
[378742061,1754998745993,-176815.56844261,0.00019,2]
[378742062,1754998759158,-1700.0,0.00019,2]
[378742063,1754998773249,165.19,0.00026722,120]
[378742064,1754998795959,-166.85011598,0.000189,2]
[378742065,1754998795981,-42548.14988402,0.00019,2]
[378742068,1754998863019,177.65,0.00013699,2]
[378742072,1754999189018,499.99131358,0.00018759,7]
[378742073,1754999323878,-224.04083,0.00018665,2]
[378742074,1754999323902,-878.58004442,0.00018696,2]
[378742075,1754999323926,-500.0,0.00018898,2]
[378742076,1754999323951,-1200.0,0.00018999,2]
[378742077,1754999323974,-1200.0,0.00018999,2]
[378742078,1754999324000,-300.0,0.00018999,2]
[378742079,1754999324025,-8597.37912558,0.00019,2]
[378742080,1754999348113,-188.73018053,0.00018999,2]
[378742083,1754999431535,-304.69,0.00018999,2]
[378742084,1754999431544,-297.75900146,0.00018999,2]
[378742085,1754999431563,-902.24099854,0.00018999,2]
[378742086,1754999431572,-304.54,0.00018999,2]
[378742087,1754999431582,-303.63,0.00018999,2]
[378742088,1754999431591,-304.51,0.00018999,2]
[378742089,1754999431601,-185.07900146,0.00018999,2]
[378742090,1754999431612,-118.83099854,0.00018999,2]
[378742091,1754999431621,-300.91,0.00019,2]
[378742092,1754999431630,-5839.5281253,0.00019,2]
[378742093,1754999431641,-585.8379997,0.00019,2]
[378742094,1754999431656,-578.56362117,0.00019,2]
[378742095,1754999431675,-2705.04501596,0.00019,2]
[378742096,1754999431685,-303.06,0.00019,2]
[378742097,1754999431694,-301.69,0.00019,2]
[378742098,1754999431704,-305.38,0.00019,2]
[378742099,1754999431713,-301.5,0.00019,2]
[378742100,1754999431722,-300.57,0.00019,2]
[378742101,1754999431731,-303.87,0.00019,2]
[378742102,1754999431740,-7348.46378471,0.00019,2]
[378742103,1754999431751,-524.49003042,0.00019,2]
[378742104,1754999431763,-21697.48042467,0.00019,2]
[378742105,1754999431772,-167.56902,0.00019,2]
[378742106,1754999431781,-305.05,0.00019,2]
[378742107,1754999431791,-157.21,0.00019178,2]
[378742108,1754999431801,-29570.4342398,0.00019769,2]
[378742109,1754999431810,-152.91,0.00020314,2]
[378742116,1754999432000,-152.91,0.00020365,2]
[378742117,1754999432010,-5479.60773,0.00020394,2]
[378742118,1754999432019,-152.91,0.00020415,2]
[378742119,1754999432029,-250.0,0.00020446,2]
[378742120,1754999432038,-152.91,0.00020466,2]
[378742121,1754999432047,-152.91,0.00020517,2]
[378742122,1754999432057,-300.0,0.00020531,2]
[378742123,1754999432066,-250.0,0.00020531,2]
[378742124,1754999432076,-29570.4342398,0.00020539,2]
[378742125,1754999432086,-474.81,0.00020648,2]
[378742126,1754999432095,-150.0,0.00020661,2]
[378742127,1754999432105,-501.06582331,0.00020733,2]
[378742128,1754999432115,-26392.2229103,0.00020755,2]
[378742129,1754999432124,-1000.0,0.00020773,2]
[378742130,1754999432134,-1482.13705995,0.00020793,2]
[378742131,1754999432143,-1680.0,0.0002081,2]
[378742132,1754999432153,-23900.0,0.00020893,2]
[378742133,1754999432162,-250.0,0.00020899,2]
[378742134,1754999432171,-200.76,0.00020964,2]
[378742135,1754999432181,-167.56903,0.00021,2]
[378742136,1754999432192,-5888.9009246,0.00021147,2]
[378742137,1754999432202,-500.0,0.00021175,2]
[378742138,1754999432211,-500.0,0.00021175,2]
[378742139,1754999432220,-502.59985879,0.00021175,2]
[378742140,1754999432230,-275.9,0.00021269,2]
[378742141,1754999432240,-29570.4342398,0.00021308,2]
[378742142,1754999432249,-500.0,0.00021411,2]
[378742143,1754999432259,-500.0,0.00021411,2]
[378742144,1754999432269,-500.0,0.00021439,2]
[378742145,1754999432278,-500.0,0.00021475,2]
[378742146,1754999432287,-500.0,0.00021744,2]
[378742147,1754999432297,-252.55451697,0.0002191,2]
[378742148,1754999432306,-666.0,0.00021918,3]
[378742149,1754999432315,-201.27432189,0.00021918,2]
[378742150,1754999432324,-200.0,0.00021984,2]
[378742151,1754999432334,-15077.97947568,0.00022163,2]
[378742152,1754999432344,-185.19,0.00022261,2]
[378742153,1754999432354,-275.9,0.00022333,2]
[378742154,1754999432363,-188.61,0.00022391,2]
[378742155,1754999432373,-980.13749361,0.00022462,2]
[378742156,1754999432382,-9999.99,0.00022562,2]
[378742157,1754999432391,-131481.78,0.00022562,2]
[378742158,1754999432400,-150.99,0.00022562,2]
[378742159,1754999432409,-500.0,0.0002275,2]
[378742160,1754999432418,-2075.0,0.00022793,2]
[378742161,1754999432427,-167.56902,0.00023,2]
[378742162,1754999432439,-2222.22,0.00023145,2]
[378742163,1754999432449,-1000.0,0.0002337,2]
[378742164,1754999432458,-1482.13705986,0.00023373,2]
[378742165,1754999432467,-275.9,0.00023396,2]
[378742166,1754999432477,-21009.38,0.00023831,2]
[378742167,1754999432487,-160.0,0.00024196,2]
[378742168,1754999432496,-275.9,0.0002446,2]
[378742169,1754999432506,-157.21,0.00024576,2]
[378742170,1754999432515,-980.13749355,0.00024795,2]
[378742171,1754999432524,-166.24009982,0.00024865,2]
[378742172,1754999432534,-168.64,0.00024896,2]
[378742173,1754999432543,-167.56903,0.00025,2]
[378742174,1754999432552,-239.62,0.00025068,2]
[378742175,1754999432564,-275.9,0.00025523,2]
[378742176,1754999432574,-1482.13705986,0.00025952,2]
[378742177,1754999432583,-1000.0,0.00025967,2]
[378742178,1754999432593,-586.35479819,0.0002599,2]
[378742179,1754999432603,-2664.7280251,0.00026,2]
[378742180,1754999432612,-211.32187153,0.00026,2]
[378742181,1754999432621,-663.02,0.00026,2]
[378742182,1754999432631,-292.07,0.00026,2]
[378742183,1754999432640,-303.03,0.00026,2]
[378742184,1754999432650,-1181.48,0.00026,2]
[378742185,1754999432659,-2222.22,0.00026166,7]
[378742186,1754999432670,-980.13749355,0.00027128,2]
[378742187,1754999432679,-150.0,0.000274,2]
[378742188,1754999432690,-218.01,0.00027451,30]
[378742189,1754999432700,-250.0,0.00028503,2]
[378742190,1754999432709,-1850.47,0.00028521,2]
[378742191,1754999432718,-1482.13705986,0.00028532,2]
[378742192,1754999432727,-1000.0,0.00028563,2]
[378742193,1754999432736,-150.0,0.0002858,2]
[378742194,1754999432746,-181.11,0.00028696,2]
[378742195,1754999432755,-166.24009982,0.00028838,2]
[378742196,1754999432764,-4009.78,0.00028875,2]
[378742197,1754999432774,-2222.22,0.00029186,30]
[378742198,1754999432784,-150.0,0.0002977,2]
[378742199,1754999432793,-157.21,0.00029975,2]
[378742200,1754999432803,-1543.90671771,0.0003,7]
[378742201,1754999432812,-150.0,0.0003,2]
[378742202,1754999432821,-150.99,0.0003,2]
[378742203,1754999432830,-150.0,0.0003,2]
[378742204,1754999432840,-150.0,0.0003,2]
[378742205,1754999432849,-2061.49242972,0.00030137,2]
[378742206,1754999432859,-673.421,0.00030402,26]
[378742207,1754999432868,-151.09,0.00030658,2]
[378742208,1754999432877,-303.68,0.00030658,2]
[378742209,1754999432887,-538.17,0.00030658,2]
[378742210,1754999432896,-173.23,0.00030658,2]
[378742211,1754999432905,-370.83,0.00030658,2]
[378742212,1754999432914,-767.84,0.00030658,2]
[378742213,1754999432923,-323.48,0.00030658,2]
[378742214,1754999432933,-150.0,0.0003095,2]
[378742215,1754999432944,-1482.13705986,0.00031111,2]
[378742216,1754999432953,-1000.0,0.0003116,2]
[378742217,1754999432963,-843.0035059,0.00031757,2]
[378742218,1754999432972,-240.0,0.0003213,2]
[378742219,1754999432981,-2222.22,0.00032207,30]
[378742220,1754999432991,-166.50338842,0.00032595,2]
[378742221,1754999433001,-166.24009982,0.0003281,15]
[378742222,1754999433010,-150.0,0.00032876,36]
[378742223,1754999433020,-500.0,0.00033573,2]
[378742224,1754999433030,-500.0,0.00033573,2]
[378742225,1754999433040,-500.0,0.00033573,2]
[378742226,1754999433049,-500.0,0.00033573,2]
[378742227,1754999433059,-500.0,0.00033573,2]
[378742228,1754999433069,-500.0,0.00033573,2]
[378742229,1754999433080,-500.0,0.00033573,2]
[378742230,1754999433090,-500.0,0.00033573,2]
[378742231,1754999433099,-500.0,0.00033573,2]
[378742232,1754999433112,-500.0,0.00033573,2]
[378742233,1754999433122,-500.0,0.00033573,2]
[378742234,1754999433132,-500.0,0.00033573,2]
[378742235,1754999433142,-500.0,0.00033573,2]
[378742236,1754999433151,-500.0,0.00033573,2]
[378742237,1754999433161,-500.0,0.00033573,2]
[378742238,1754999433171,-500.0,0.00033573,2]
[378742239,1754999433181,-500.0,0.00033573,2]
[378742240,1754999433192,-500.0,0.00033573,2]
[378742241,1754999433202,-500.0,0.00033573,2]
[378742242,1754999433212,-368.36364219,0.00033573,2]
[378742243,1754999433221,-218.01,0.00033675,30]
[378742244,1754999433231,-1482.13705986,0.00033691,2]
[378742245,1754999433240,-1000.0,0.00034999,2]
[378742246,1754999433250,-2222.22,0.00035228,60]
[378742247,1754999433259,-157.21,0.00035373,2]
[378742248,1754999433272,-500.0,0.00035917,120]
[378742249,1754999433282,-602.99241268,0.0003603,2]
[378742250,1754999433291,-429.29,0.00036054,120]
[378742251,1754999433300,-1482.13705986,0.0003627,2]
[378742252,1754999433310,-105178.45001113,0.0003636,2]
[378742253,1754999433320,-810.0,0.00036544,2]
[378742254,1754999433329,-4146.0,0.00036544,2]
[378742255,1754999433339,-2701.2,0.00036544,2]
[378742256,1754999433348,-1171.0,0.00036544,2]
[378742257,1754999433360,-166.24009982,0.00036783,15]
[378742258,1754999433370,-1000.0,0.00037,7]
[378742259,1754999433379,-166.50338842,0.00037026,2]
[378742260,1754999433389,-3862.87,0.00037067,2]
[378742261,1754999433399,-1311.39,0.00037067,2]
[378742262,1754999433409,-151.0,0.00037078,7]
[378742263,1754999433418,-1216.0,0.00037078,7]
[378742264,1754999433428,-1216.0,0.00037078,7]
[378742265,1754999433438,-151.0,0.00037078,7]
[378742266,1754999433448,-1216.0,0.00037078,7]
[378742267,1754999433458,-1246.60185678,0.00037078,7]
[378742268,1754999433468,-151.0,0.00037078,7]
[378742269,1754999433478,-1872.95,0.00037078,2]
[378742270,1754999433487,-28098.3506626,0.00037079,3]
[378742271,1754999433498,-27397.6152899,0.00037079,3]
[378742272,1754999433508,-10931.87413388,0.00037099,7]
[378742273,1754999433517,-211.77135896,0.000371,3]
[378742274,1754999433526,-457.93703655,0.000371,3]
[378742275,1754999433535,-457.93703655,0.000371,7]
[378742276,1754999433545,-502.45954676,0.00037125,5]
[378742277,1754999433555,-1000.0,0.000377,7]
[378742278,1754999433565,-449.0,0.000378,5]
[378742279,1754999433575,-500.0,0.0003785,5]
[378742280,1754999433585,-500.0,0.0003785,5]
[378742281,1754999433595,-561.1341487,0.00037913,5]
[378742282,1754999433605,-500.0,0.00038073,5]
[378742283,1754999433614,-500.6679306,0.00038082,5]
[378742284,1754999433624,-2222.22,0.00038249,60]
[378742285,1754999433633,-501.29968708,0.0003829,5]
[378742286,1754999433643,-500.0,0.0003829,5]
[378742287,1754999433653,-500.0,0.0003829,5]
[378742288,1754999433664,-500.73794987,0.0003829,5]
[378742289,1754999433674,-457.15086817,0.0003829,5]
[378742290,1754999433684,-500.0,0.0003829,5]
[378742291,1754999433694,-28098.3506626,0.0003857,3]
[378742292,1754999433704,-27397.6152899,0.0003857,3]
[378742293,1754999433714,-174.23915441,0.00038719,13]
[378742294,1754999433724,-5000.0,0.0003873,2]
[378742295,1754999433733,-457.93703655,0.00038758,2]
[378742296,1754999433743,-211.77135896,0.00038758,2]
[378742297,1754999433753,-28098.3506626,0.00038809,3]
[378742298,1754999433764,-27397.6152899,0.00038809,3]
[378742299,1754999433774,-28098.3506626,0.0003882,3]
[378742300,1754999433784,-27397.6152899,0.0003882,3]
[378742301,1754999433794,-56196.7013252,0.00038829,3]
[378742302,1754999433803,-54795.2305798,0.00038829,3]
[378742303,1754999433813,-1482.13705986,0.0003885,2]
[378742304,1754999433822,-1872.95605824,0.00038868,30]
[378742305,1754999433832,-187.502505,0.00038868,120]
[378742306,1754999433842,-500.0,0.00038873,5]
[378742307,1754999433851,-500.0,0.00038873,5]
[378742308,1754999433862,-500.96229642,0.00038873,5]
[378742309,1754999433871,-502.16250656,0.00038873,5]
[378742310,1754999433881,-500.0,0.00038873,5]
[378742311,1754999433891,-500.0,0.00038873,5]
[378742312,1754999433900,-500.0,0.00038873,5]
[378742313,1754999433910,-584.47677367,0.00038873,5]
[378742314,1754999433919,-1000.0,0.000389,2]
[378742315,1754999433929,-500.0,0.000389,14]
[378742316,1754999433942,-1000.0,0.000389,2]
[378742317,1754999433951,-615.94,0.00038904,120]
[378742318,1754999433961,-3416.57186773,0.00038925,5]
[378742319,1754999433971,-47953.60479291,0.0003929,31]
[378742320,1754999433982,-28098.3506626,0.0003929,3]
[378742321,1754999433992,-27397.6152899,0.0003929,3]
[378742322,1754999434002,-78623.96,0.000393,90]
[378742323,1754999434011,-28098.3506626,0.00039425,3]
[378742324,1754999434021,-27397.6152899,0.00039425,3]
[378742325,1754999434031,-181.17,0.00039433,2]
[378742326,1754999434179,-810.0,0.00039544,2]
[378742327,1754999434191,-3551.24,0.00039544,2]
[378742328,1754999434200,-797.21,0.00039589,2]
[378742329,1754999434210,-218.01,0.00039899,120]
[378742330,1754999434219,-165.6019025,0.0004,120]
[378742331,1754999434228,-322.69,0.0004,30]
[378742332,1754999434238,-278.4491608,0.0004,120]
[378742333,1754999434247,-1000.0,0.00040122,30]
[378742334,1754999434256,-178.26094201,0.00040254,7]
[378742335,1754999434270,-28098.3506626,0.00040264,3]
[378742336,1754999434279,-27397.6152899,0.00040264,3]
[378742337,1754999434289,-28098.3506626,0.00040265,3]
[378742338,1754999434299,-27397.6152899,0.00040265,3]
[378742339,1754999434309,-167.98,0.00040305,2]
[378742340,1754999434319,-150.0,0.00040412,2]
[378742341,1754999434328,-933.22,0.00040548,2]
[378742342,1754999434338,-181.34,0.00040548,2]
[378742343,1754999434347,-331.38,0.00040548,2]
[378742344,1754999434356,-150.0,0.00040663,2]
[378742345,1754999434366,-1000.0,0.000407,14]
[378742346,1754999434375,-166.24009982,0.00040755,15]
[378742347,1754999434384,-27397.6152899,0.00040761,3]
[378742348,1754999434394,-157.21,0.00040771,2]
[378742349,1754999434403,-1600.0,0.000408,14]
[378742350,1754999434413,-28098.3506626,0.00040802,3]
[378742351,1754999434423,-949.01698246,0.00040821,120]
[378742352,1754999434433,-150.82,0.00040822,2]
[378742353,1754999434445,-1087.65,0.00040822,2]
[378742354,1754999434454,-150.0,0.00040833,2]
[378742355,1754999434463,-2100.0,0.000409,14]
[378742356,1754999434474,-152.82993288,0.000409,120]
[378742357,1754999434483,-150.0,0.00040908,2]
[378742358,1754999434493,-27397.6152899,0.00040975,3]
[378742359,1754999434502,-105700.6474316,0.00040975,14]
[378742360,1754999434514,-161.41477573,0.00040975,2]
[378742361,1754999434524,-56196.7013252,0.00040975,3]
[378742362,1754999434533,-54795.2305798,0.00040975,3]
[378742363,1754999434543,-150.0,0.00040984,2]
[378742364,1754999434552,-56196.7013252,0.00040985,3]
[378742365,1754999434561,-27397.6152899,0.00040985,3]
[378742366,1754999434570,-66215.40282096,0.00040995,60]
[378742367,1754999434585,-4435.99073837,0.00040995,60]
[378742368,1754999434596,-2112.0468453,0.00040995,60]
[378742369,1754999434608,-16124.55959537,0.00040995,60]
[378742370,1754999434617,-28098.3506626,0.00041034,3]
[378742371,1754999434627,-27397.6152899,0.00041034,3]
[378742372,1754999434636,-15580.96037944,0.00041045,3]
[378742373,1754999434762,-2894.16025213,0.0003929,61]
[378742374,1754999434771,-634.83523955,0.00041045,3]
[378742375,1754999434784,-366.81,0.00041045,3]
[378742378,1754999437309,-160.36231303,0.00018899,2]
[378742379,1754999437323,-204.18736496,0.00029462,2]
[378742380,1754999437355,-256.9635532,0.00029462,2]
[378742381,1754999437410,-518.98657539,0.00029462,2]
[378742382,1754999437424,-888.0,0.0003907,3]
[378742383,1754999437438,-497.97787985,0.00039544,2]
[378742384,1754999437453,-673.02212015,0.00039544,2]
[378742385,1754999437466,-2092.71075627,0.00041045,3]
[378742386,1754999437482,-381.59225543,0.00041045,3]
[378742387,1754999437498,-286.84534336,0.00041045,3]
[378742388,1754999437519,-455.91812496,0.00041045,3]
[378742389,1754999437535,-349.30577099,0.00041045,3]
[378742390,1754999437551,-7248.6374199,0.00041045,3]
[378742391,1754999437563,-47454.78716419,0.00041046,3]
[378742392,1754999437580,-311.42415122,0.00041046,3]
[378742393,1754999437606,-1186.3,0.00041046,3]
[378742394,1754999437622,-337.95501913,0.00041046,3]
[378742395,1754999437637,-397.12860004,0.00041046,3]
[378742396,1754999437663,-1018.91627795,0.00041046,3]
[378742560,1754999439454,-153.0,0.00037078,7]
[378742562,1754999439464,-432.69057335,0.0003957,3]
[378742564,1754999439476,-455.30942665,0.0003957,3]
[378742566,1754999439485,-309.43651835,0.00041046,3]
[378742568,1754999439497,-1088.94462537,0.00041046,3]
[378742576,1754999439559,-4091.80896895,0.00041046,3]
[378742578,1754999439569,-425.27237478,0.00041046,3]
[378742590,1754999439665,-153.0,0.00037078,7]
[378742616,1754999439875,-26972.34291512,0.00041046,3]
[378742620,1754999439921,-499.24950002,0.00041055,2]
[378742623,1754999439940,-80218.42799923,0.00041055,3]
[378742625,1754999439952,-4076.62398847,0.00041055,3]
[378742627,1754999439961,-38461.91166807,0.00041055,3]
[378742629,1754999439972,-16109.29520085,0.00041055,3]
[378742631,1754999439984,-27621.63900078,0.00041055,3]
[378742633,1754999439993,-150.0,0.00041065,2]
[378742635,1754999440003,-999.0,0.00041065,120]
[378742637,1754999440012,-28098.3506626,0.00041065,3]
[378742639,1754999440021,-27397.6152899,0.00041065,3]
[378742641,1754999440030,-312.0,0.00041068,120]
[378742643,1754999440039,-165.14,0.00041068,2]
[378742645,1754999440048,-500.68978573,0.00041073,5]
[378742647,1754999440058,-500.0,0.00041075,120]
[378742649,1754999440067,-500.0,0.00041075,120]
[378742651,1754999440076,-500.0,0.00041075,120]
[378742654,1754999440086,-591.4094656,0.00041075,120]
[378742656,1754999440095,-150.0,0.00041084,120]
[378742658,1754999440104,-151.0,0.00041085,30]
[378742660,1754999440114,-151.0,0.00041085,30]
[378742662,1754999440123,-500.0,0.00041094,120]
[378742664,1754999440132,-257.89,0.00041094,120]
[378742666,1754999440142,-400.0,0.00041095,30]
[378742668,1754999440151,-401.10066057,0.00041095,30]
[378742670,1754999440161,-401.65858344,0.00041095,30]
[378742672,1754999440171,-400.0,0.00041095,30]
[378742674,1754999440180,-400.0,0.00041095,30]
[378742676,1754999440190,-400.0,0.00041095,30]
[378742678,1754999440199,-403.54989746,0.00041095,30]
[378742680,1754999440208,-403.46118092,0.00041095,30]
[378742682,1754999440217,-400.0,0.00041095,30]
[378742684,1754999440226,-400.98461319,0.00041095,30]
[378742686,1754999440235,-400.0,0.00041095,30]
[378742687,1754999440244,-400.79923722,0.00041095,30]
[378742690,1754999440253,-400.96740029,0.00041095,30]
[378742691,1754999440263,-400.0,0.00041095,2]
[378742694,1754999440273,-401.51513803,0.00041095,30]
[378742696,1754999440285,-400.0,0.00041095,30]
[378742698,1754999440294,-403.56723611,0.00041095,30]
[378742700,1754999440304,-400.0,0.00041095,30]
[378742702,1754999440313,-400.42708172,0.00041095,30]
[378742704,1754999440322,-400.0,0.00041095,30]
[378742706,1754999440331,-401.13238749,0.00041095,30]
[378742708,1754999440340,-406.83438348,0.00041095,30]
[378742710,1754999440349,-400.0,0.00041095,30]
[378742712,1754999440358,-416.488226,0.00041095,30]
[378742714,1754999440367,-400.0,0.00041095,30]
[378742716,1754999440376,-400.0,0.00041095,30]
[378742718,1754999440385,-400.0,0.00041095,30]
[378742720,1754999440394,-400.0,0.00041095,30]
[378742722,1754999440403,-152.830785,0.00041095,30]
[378742724,1754999440412,-404.77957565,0.00041095,30]
[378742725,1754999440421,-400.0,0.00041095,30]
[378742727,1754999440431,-705.3,0.00041095,30]
[378742730,1754999440441,-492.10160153,0.00041095,30]
[378742732,1754999440451,-400.0,0.00041095,30]
[378742734,1754999440459,-400.0,0.00041095,30]
[378742736,1754999440468,-400.0,0.00041095,30]
[378742738,1754999440477,-400.0,0.00041095,30]
[378742739,1754999440487,-404.94949192,0.00041095,30]
[378742741,1754999440495,-400.0,0.00041095,30]
[378742744,1754999440505,-400.0,0.00041095,30]
[378742746,1754999440514,-400.0,0.00041095,30]
[378742748,1754999440523,-400.0,0.00041095,30]
[378742749,1754999440533,-340.84420443,0.00041095,30]
[378742751,1754999440543,-400.0,0.00041095,30]
[378742753,1754999440552,-400.0,0.00041095,30]
[378742756,1754999440561,-400.0,0.00041095,30]
[378742758,1754999440570,-400.0,0.00041095,30]
[378742759,1754999440580,-400.0,0.00041095,30]
[378742761,1754999440589,-406.44811023,0.00041095,30]
[378742763,1754999440598,-400.0,0.00041095,30]
[378742765,1754999440607,-241.98286789,0.00041095,30]
[378742767,1754999440617,-400.0,0.00041095,30]
[378742770,1754999440627,-400.0,0.00041095,30]
[378742772,1754999440637,-400.0,0.00041095,30]
[378742774,1754999440646,-520.67716676,0.00041095,30]
[378742775,1754999440658,-400.0,0.00041095,30]
[378742777,1754999440667,-400.0,0.00041095,30]
[378742779,1754999440676,-400.0,0.00041095,30]
[378742781,1754999440686,-400.0,0.00041095,30]
[378742784,1754999440696,-400.0,0.00041095,30]
[378742786,1754999440705,-400.0,0.00041095,30]
[378742788,1754999440715,-400.0,0.00041095,30]
[378742790,1754999440724,-400.0,0.00041095,30]
[378742792,1754999440734,-400.0,0.00041095,30]
[378742794,1754999440743,-155.75,0.00041095,30]
[378742796,1754999440753,-400.0,0.00041095,30]
[378742798,1754999440763,-400.0,0.00041095,30]
[378742800,1754999440772,-509.56331354,0.00041095,30]
[378742802,1754999440781,-405.835918,0.00041095,14]
[378742804,1754999440790,-501.47333098,0.00041095,30]
[378742806,1754999440799,-404.7626324,0.00041095,30]
[378742808,1754999440809,-256.67520722,0.00041095,30]
[378742810,1754999440818,-400.0,0.00041095,30]
[378742812,1754999440827,-508.82565545,0.00041095,30]
[378742813,1754999440836,-405.60118204,0.00041095,30]
[378742815,1754999440846,-402.57539095,0.00041095,30]
[378742817,1754999440855,-400.0,0.00041095,30]
[378742819,1754999440864,-400.0,0.00041095,30]
[378742821,1754999440874,-400.0,0.00041095,30]
[378742823,1754999440883,-442.2433784,0.00041095,30]
[378742825,1754999440892,-400.0,0.00041095,30]
[378742827,1754999440902,-400.0,0.00041095,30]
[378742829,1754999440911,-400.0,0.00041095,30]
[378742831,1754999440920,-400.0,0.00041095,30]
[378742833,1754999440929,-500.0,0.00041095,30]
[378742835,1754999440939,-400.0,0.00041095,30]
[378742837,1754999440949,-172.37829512,0.00041095,30]
[378742839,1754999440959,-400.0,0.00041095,30]
[378742841,1754999440968,-403.80427856,0.00041095,30]
[378742843,1754999440978,-401.74206171,0.00041095,30]
[378742845,1754999440988,-402.07914248,0.00041095,30]
[378742847,1754999440997,-400.0,0.00041095,30]
[378742849,1754999441007,-400.62121385,0.00041095,7]
[378742851,1754999441017,-400.0,0.00041095,30]
[378742853,1754999441026,-400.0,0.00041095,30]
[378742855,1754999441036,-400.0,0.00041095,30]
[378742857,1754999441046,-403.79882443,0.00041095,30]
[378742859,1754999441055,-493.48,0.00041095,30]
[378742861,1754999441065,-400.0,0.00041095,30]
[378742863,1754999441075,-400.0,0.00041095,30]
[378742865,1754999441085,-400.0,0.00041095,30]
[378742867,1754999441094,-400.0,0.00041095,30]
[378742869,1754999441104,-400.0,0.00041095,30]
[378742871,1754999441113,-402.87928705,0.00041095,30]
[378742873,1754999441123,-400.0,0.00041095,30]
[378742875,1754999441132,-400.0,0.00041095,30]
[378742876,1754999441142,-400.0,0.00041095,30]
[378742878,1754999441153,-400.0,0.00041095,30]
[378742880,1754999441162,-421.66,0.00041095,30]
[378742882,1754999441172,-400.0,0.00041095,30]
[378742885,1754999441182,-480.14478816,0.00041095,30]
[378742886,1754999441194,-400.0,0.00041095,30]
[378742888,1754999441204,-400.0,0.00041095,30]
[378742891,1754999441214,-400.0,0.00041095,30]
[378742893,1754999441223,-400.0,0.00041095,30]
[378742895,1754999441233,-400.0,0.00041095,30]
[378742897,1754999441243,-400.0,0.00041095,30]
[378742899,1754999441252,-400.0,0.00041095,30]
[378742901,1754999441262,-416.31447111,0.00041095,30]
[378742902,1754999441271,-447.07,0.00041095,30]
[378742904,1754999441284,-400.0,0.00041095,30]
[378742906,1754999441294,-400.0,0.00041095,30]
[378742908,1754999441303,-403.8968981,0.00041095,30]
[378742910,1754999441312,-401.13484916,0.00041095,30]